[Event "4NCL 2019-20"]
[Site "Daventry"]
[Date "2020.01.11"]
[Round "3"]
[White "Wu, Li"]
[Black "Ledger, Stephen C"]
[Result "1-0"]
[ECO "A59"]
[WhiteElo "2291"]
[BlackElo "2013"]
[Annotator "ChessBase"]
[PlyCount "81"]
[EventDate "2020.01.11"]
[EventCountry "ENG"]
[SourceTitle "playchess.com"]
[Source "ChessBase"]
[SourceQuality "1"]
[TimeControl "40/6000:3000+30"]

1. d4 {[%emt 0:00:00]} Nf6 {[%emt 0:00:00]} 2. c4 {[%emt 0:00:00]} c5 {[%emt 0:00:00]} 3. d5 {[%emt 0:00:00]} b5 {[%emt 0:00:00]} 4. cxb5 {[%emt 0:00:00]} a6 {[%emt 0:00:00]} 5. bxa6 {[%emt 0:00:00]} Bxa6 {[%emt 0:00:00]} 6. Nc3 {[%emt 0:00:00]} g6 {[%emt 0:00:00]} 7. e4 {[%emt 0:00:00]} Bxf1 {[%emt 0:00:00]} 8. Kxf1 {[%emt 0:00:00]} d6 {[%emt 0:00:00]} 9. g3 {[%emt 0:00:00]} Bg7 {[%emt 0:00:00]} 10. Kg2 {[%emt 0:00:00]} O-O {[%emt 0:00:00]} 11. Nf3 {[%emt 0:00:00]} Nbd7 {[%emt 0:00:00]} 12. a4 {[%emt 0:03:15]} Qb6 {[%emt 0:02:25]} 13. Ra3 {[%emt 0:03:55]} Rfb8 {[%emt 0:03:50]} 14. Nd2 {[%emt 0:04:26]} Ne8 {[%emt 0:08:52]} 15. h4 {[%emt 0:07:03]} h5 {[%emt 0:07:50]} 16. Nb5 {[%emt 0:19:20]} Nc7 {[%emt 0:08:25]} 17. Nc4 {[%emt 0:02:31]} Qb7 {[%emt 0:00:00]} 18. Nxc7 {[%emt 0:00:30]} Qxc7 {[%emt 0:00:00]} 19. Qc2 {[%emt 0:08:34]} Ne5 {[%emt 0:03:23]} 20. b3 {[%emt 0:08:59]} Nxc4 {[%emt 0:03:53]} 21. bxc4 {[%emt 0:00:00]} Rb4 {[%emt 0:02:00]} 22. Bd2 {[%emt 0:04:15]} Rb2 {[%emt 0:08:30]} 23. Qd3 {[%emt 0:00:30]} Qb7 {[%emt 0:02:35]} 24. a5 {[%emt 0:10:01]} Rb8 {[%emt 0:05:14]} 25. a6 {[%emt 0:02:46]} Qa7 {[%emt 0:06:59]} 26. Rha1 {[%emt 0:00:26]} Rxd2 {[%emt 0:07:19]} 27. Qxd2 {[%emt 0:00:00]} Bxa1 {[%emt 0:00:00]} 28. Rxa1 {[%emt 0:00:00]} Rb4 {[%emt 0:00:00]} 29. Qc2 {[%emt 0:05:38]} Kh7 {[%emt 0:08:14]} 30. Ra5 {[%emt 0:00:25]} f6 {[%emt 0:10:01]} 31. Qa2 {[%emt 0:00:28]} Rb6 {[%emt 0:05:13]} 32. Qa4 {[%emt 0:02:55]} Kg7 {[%emt 0:01:09]} 33. Qe8 {[%emt 0:06:47]} Rb8 {[%emt 0:01:10]} 34. Qc6 {[%emt 0:00:39]} Rb6 {[%emt 0:00:41]} 35. Ra2 {[%emt 0:01:44]} Rb8 {[%emt 0:00:24]} 36. f4 {[%emt 0:00:56]} Kf7 {[%emt 0:00:30]} 37. e5 {[%emt 0:00:00]} fxe5 {[%emt 0:00:29]} 38. fxe5 {[%emt 0:00:00]} dxe5 {[%emt 0:00:08]} 39. Qe6+ {[%emt 0:00:00]} Kg7 {[%emt 0:00:03]} 40. Rf2 {[%emt 0:00:27]} Kh6 {[%emt 0:00:08]} 41. Qxe5 {[%emt 0:11:19]} 1-0

[Event "4NCL 2019-20"]
[Site "Daventry"]
[Date "2020.01.11"]
[Round "3"]
[White "Sowray, Peter J"]
[Black "Quinn, John M"]
[Result "1-0"]
[ECO "A65"]
[WhiteElo "2272"]
[BlackElo "2139"]
[Annotator "ChessBase"]
[PlyCount "81"]
[EventDate "2020.01.11"]
[EventCountry "ENG"]
[SourceTitle "playchess.com"]
[Source "ChessBase"]
[SourceQuality "1"]
[TimeControl "40/6000:3000+30"]

1. d4 {[%emt 0:00:00]} Nf6 {[%emt 0:00:00]} 2. c4 {[%emt 0:00:00]} g6 {[%emt 0:00:00]} 3. Nc3 {[%emt 0:00:00]} Bg7 {[%emt 0:00:00]} 4. e4 {[%emt 0:00:00]} d6 {[%emt 0:00:00]} 5. f3 {[%emt 0:00:00]} O-O {[%emt 0:00:00]} 6. Be3 {[%emt 0:00:00]} c5 {[%emt 0:00:00]} 7. Nge2 {[%emt 0:00:00]} Nc6 {[%emt 0:00:00]} 8. d5 {[%emt 0:00:00]} Ne5 {[%emt 0:00:00]} 9. Ng3 {[%emt 0:00:00]} e6 {[%emt 0:00:00]} 10. Be2 {[%emt 0:00:00]} exd5 {[%emt 0:00:00]} 11. cxd5 {[%emt 0:00:00]} a6 {[%emt 0:00:00]} 12. a4 {[%emt 0:00:00]} Bd7 {[%emt 0:00:00]} 13. O-O {[%emt 0:00:00]} b5 {[%emt 0:00:00]} 14. h3 {[%emt 0:00:57]} Rb8 {[%emt 0:01:39]} 15. f4 {[%emt 0:03:06]} Nc4 {[%emt 0:00:00]} 16. Bxc4 {[%emt 0:00:00]} bxc4 {[%emt 0:00:00]} 17. Qd2 {[%emt 0:01:05]} Re8 {[%emt 0:17:40]} 18. e5 {[%emt 0:18:15]} dxe5 {[%emt 0:04:02]} 19. fxe5 {[%emt 0:03:47]} Rxe5 {[%emt 0:00:38]} 20. Bxc5 {[%emt 0:02:38]} Nh5 {[%emt 0:33:13]} 21. Nge4 {[%emt 0:06:48]} f5 {[%emt 0:05:44]} 22. Ng5 {[%emt 0:04:04]} Ng3 {[%emt 0:11:31]} 23. Rf2 {[%emt 0:09:35]} h6 {[%emt 0:06:34]} 24. Nf3 {[%emt 0:00:59]} Ne4 {[%emt 0:02:02]} 25. Nxe4 {[%emt 0:02:10]} Rxe4 {[%emt 0:00:00]} 26. Bd4 {[%emt 0:03:50]} Bxd4 {[%emt 0:03:34]} 27. Nxd4 {[%emt 0:00:00]} Qb6 {[%emt 0:00:11]} 28. Nf3 {[%emt 0:00:41]} Kh7 {[%emt 0:01:54]} 29. a5 {[%emt 0:03:48]} Qc5 {[%emt 0:00:00]} 30. Kh1 {[%emt 0:09:06]} Rb3 {[%emt 0:00:58]} 31. Rc1 {[%emt 0:02:28]} Rd3 {[%emt 0:03:11]} 32. Qxd3 {[%emt 0:04:29]} Qxf2 {[%emt 0:00:00]} 33. Qa3 {[%emt 0:00:39]} Re2 {[%emt 0:00:19]} 34. Rg1 {[%emt 0:00:00]} f4 {[%emt 0:01:38]} 35. Qf8 {[%emt 0:00:48]} Bf5 {[%emt 0:01:40]} 36. Ne5 {[%emt 0:02:00]} Be4 {[%emt 0:01:39]} 37. Qf7+ {[%emt 0:00:37]} Kh8 {[%emt 0:00:00]} 38. Nxg6+ {[%emt 0:00:15]} Bxg6 {[%emt 0:00:00]} 39. Qxg6 {[%emt 0:00:00]} Rxb2 {[%emt 0:00:00]} 40. d6 {[%emt 0:00:00]} f3 {[%emt 0:01:15]} 41. Qxh6+ {[%emt 0:51:49]} 1-0

[Event "4NCL 2019-20"]
[Site "Daventry"]
[Date "2020.01.11"]
[Round "3"]
[White "Abbas, Daniel"]
[Black "McPhillips, Joseph"]
[Result "0-1"]
[ECO "C03"]
[WhiteElo "2251"]
[BlackElo "2434"]
[Annotator "ChessBase"]
[PlyCount "96"]
[EventDate "2020.01.11"]
[EventCountry "ENG"]
[SourceTitle "playchess.com"]
[Source "ChessBase"]
[SourceQuality "1"]
[TimeControl "40/6000:3000+30"]

1. e4 {[%emt 0:00:00]} e6 {[%emt 0:00:00]} 2. d4 {[%emt 0:00:00]} d5 {[%emt 0:00:00]} 3. Nd2 {[%emt 0:00:00]} h6 {[%emt 0:00:00]} 4. Ngf3 {[%emt 0:00:00]} Nf6 {[%emt 0:00:00]} 5. e5 {[%emt 0:00:00]} Nfd7 {[%emt 0:00:00]} 6. Bd3 {[%emt 0:00:00]} c5 {[%emt 0:00:00]} 7. c3 {[%emt 0:00:00]} Nc6 {[%emt 0:00:00]} 8. a3 {[%emt 0:00:00]} Qb6 {[%emt 0:00:00]} 9. O-O {[%emt 0:02:49]} cxd4 {[%emt 0:00:00]} 10. cxd4 {[%emt 0:00:00]} a5 {[%emt 0:00:00]} 11. Rb1 {[%emt 0:23:45]} Be7 {[%emt 0:00:00]} 12. Re1 {[%emt 0:01:50]} g5 {[%emt 0:01:47]} 13. h3 {[%emt 0:12:06]} h5 {[%emt 0:00:09]} 14. Nf1 {[%emt 0:05:20]} g4 {[%emt 0:00:11]} 15. hxg4 {[%emt 0:05:58]} hxg4 {[%emt 0:00:00]} 16. N3h2 {[%emt 0:01:23]} Qxd4 {[%emt 0:00:00]} 17. Nxg4 {[%emt 0:03:33]} Nc5 {[%emt 0:00:00]} 18. Bb5 {[%emt 0:05:53]} Qxd1 {[%emt 0:01:25]} 19. Rxd1 {[%emt 0:00:00]} Bd7 {[%emt 0:00:00]} 20. Be2 {[%emt 0:10:31]} O-O-O {[%emt 0:06:54]} 21. Be3 {[%emt 0:07:47]} Be8 {[%emt 0:00:00]} 22. b4 {[%emt 0:02:46]} axb4 {[%emt 0:01:28]} 23. axb4 {[%emt 0:00:02]} Ne4 {[%emt 0:00:00]} 24. Rdc1 {[%emt 0:01:58]} d4 {[%emt 0:10:31]} 25. b5 {[%emt 0:05:26]} dxe3 {[%emt 0:18:13]} 26. bxc6 {[%emt 0:00:14]} Bxc6 {[%emt 0:00:00]} 27. Nfxe3 {[%emt 0:03:22]} Kc7 {[%emt 0:00:00]} 28. Bf3 {[%emt 0:00:33]} Nd2 {[%emt 0:06:41]} 29. Bxc6 {[%emt 0:00:26]} bxc6 {[%emt 0:00:00]} 30. Ra1 {[%emt 0:00:37]} Nb3 {[%emt 0:09:22]} 31. Ra7+ {[%emt 0:00:00]} Kb6 {[%emt 0:00:00]} 32. Rxc6+ {[%emt 0:01:40]} Kxc6 {[%emt 0:01:26]} 33. Rxe7 {[%emt 0:00:00]} Ra8 {[%emt 0:00:00]} 34. g3 {[%emt 0:00:18]} Ra1+ {[%emt 0:00:00]} 35. Kg2 {[%emt 0:00:58]} Nd2 {[%emt 0:00:00]} 36. Rxf7 {[%emt 0:00:00]} Rhh1 {[%emt 0:00:10]} 37. f4 {[%emt 0:00:07]} Rhg1+ {[%emt 0:08:45]} 38. Kf2 {[%emt 0:00:07]} Ne4+ {[%emt 0:00:51]} 39. Kf3 {[%emt 0:00:00]} Ra4 {[%emt 0:00:00]} 40. f5 {[%emt 0:00:00]} Ng5+ {[%emt 0:06:18]} 41. Kf2 {[%emt 0:50:14]} Rc1 {[%emt 0:50:27]} 42. fxe6 {[%emt 0:00:00]} Ra2+ {[%emt 0:00:00]} 43. Nc2 {[%emt 0:00:00]} Rcxc2+ {[%emt 0:00:00]} 44. Ke3 {[%emt 0:00:00]} Re2+ {[%emt 0:00:00]} 45. Kf4 {[%emt 0:00:00]} Nxf7 {[%emt 0:00:00]} 46. exf7 {[%emt 0:00:00]} Rf2+ {[%emt 0:00:00]} 47. Nxf2 {[%emt 0:00:00]} Rxf2+ {[%emt 0:00:00]} 48. Kg5 {[%emt 0:00:00]} Kd5 {[%emt 0:00:00]} 0-1

[Event "4NCL 2019-20"]
[Site "Daventry"]
[Date "2020.01.11"]
[Round "3"]
[White "House, Glenn L"]
[Black "Wells, Peter K"]
[Result "0-1"]
[ECO "A04"]
[WhiteElo "2239"]
[BlackElo "2390"]
[Annotator "ChessBase"]
[PlyCount "98"]
[EventDate "2020.01.11"]
[EventCountry "ENG"]
[SourceTitle "playchess.com"]
[Source "ChessBase"]
[SourceQuality "1"]
[TimeControl "40/6000:3000+30"]

1. Nf3 {[%emt 0:02:01]} c5 {[%emt 0:00:57]} 2. g3 {[%emt 0:00:00]} Nc6 {[%emt 0:00:00]} 3. Bg2 {[%emt 0:00:00]} g6 {[%emt 0:00:00]} 4. d3 {[%emt 0:00:00]} Bg7 {[%emt 0:00:00]} 5. e4 {[%emt 0:00:00]} d6 {[%emt 0:01:18]} 6. O-O {[%emt 0:00:00]} e5 {[%emt 0:00:00]} 7. c3 {[%emt 0:00:00]} Nge7 {[%emt 0:00:00]} 8. a3 {[%emt 0:00:00]} O-O {[%emt 0:00:00]} 9. b4 {[%emt 0:00:00]} a6 {[%emt 0:00:00]} 10. Nbd2 {[%emt 0:00:00]} h6 {[%emt 0:00:06]} 11. Bb2 {[%emt 0:01:33]} Be6 {[%emt 0:06:08]} 12. Nb3 {[%emt 0:00:47]} b6 {[%emt 0:03:41]} 13. Re1 {[%emt 0:11:02]} Ra7 {[%emt 0:20:06]} 14. Rb1 {[%emt 0:00:58]} f5 {[%emt 0:20:46]} 15. exf5 {[%emt 0:11:51]} gxf5 {[%emt 0:06:51]} 16. Nh4 {[%emt 0:05:18]} Bf6 {[%emt 0:09:03]} 17. Nf3 {[%emt 0:03:36]} Kh7 {[%emt 0:12:33]} 18. Nfd2 {[%emt 0:17:42]} a5 {[%emt 0:06:11]} 19. b5 {[%emt 0:00:43]} Nb8 {[%emt 0:00:00]} 20. c4 {[%emt 0:03:10]} Ng6 {[%emt 0:00:22]} 21. d4 {[%emt 0:12:26]} Re7 {[%emt 0:00:20]} 22. d5 {[%emt 0:02:38]} Bc8 {[%emt 0:00:22]} 23. Nf1 {[%emt 0:03:21]} e4 {[%emt 0:02:45]} 24. Bxf6 {[%emt 0:08:03]} Rxf6 {[%emt 0:00:00]} 25. Qc2 {[%emt 0:00:00]} Nd7 {[%emt 0:00:00]} 26. Rbd1 {[%emt 0:07:01]} Nde5 {[%emt 0:00:12]} 27. Nc1 {[%emt 0:00:00]} Rg7 {[%emt 0:01:18]} 28. Nd2 {[%emt 0:01:18]} h5 {[%emt 0:01:35]} 29. Re3 {[%emt 0:01:50]} h4 {[%emt 0:00:12]} 30. Ne2 {[%emt 0:03:33]} Kg8 {[%emt 0:01:14]} 31. f4 {[%emt 0:00:13]} Ng4 {[%emt 0:01:02]} 32. Rb3 {[%emt 0:00:03]} hxg3 {[%emt 0:00:18]} 33. hxg3 {[%emt 0:00:00]} Rff7 {[%emt 0:01:24]} 34. Nf1 {[%emt 0:00:00]} Rh7 {[%emt 0:00:36]} 35. Ne3 {[%emt 0:00:00]} Nxe3 {[%emt 0:00:04]} 36. Rxe3 {[%emt 0:00:00]} Rfg7 {[%emt 0:00:00]} 37. Kf2 {[%emt 0:00:00]} Nf8 {[%emt 0:00:00]} 38. Rh1 {[%emt 0:00:00]} Rxh1 {[%emt 0:00:00]} 39. Bxh1 {[%emt 0:00:00]} Nd7 {[%emt 0:00:00]} 40. Bg2 {[%emt 0:00:00]} Nf6 {[%emt 0:00:00]} 41. Bh3 {[%emt 0:08:03]} Rh7 {[%emt 0:02:00]} 42. Kg2 {[%emt 0:04:38]} Rxh3 {[%emt 0:07:46]} 43. Kxh3 {[%emt 0:00:11]} Ng4 {[%emt 0:00:03]} 44. Qc1 {[%emt 0:12:24]} Qf6 {[%emt 0:00:48]} 45. Kg2 {[%emt 0:00:36]} Qh8 {[%emt 0:00:31]} 46. Qg1 {[%emt 0:02:16]} Qb2 {[%emt 0:00:41]} 47. Kh3 {[%emt 0:02:10]} Qd2 {[%emt 0:00:53]} 48. Qa1 {[%emt 0:08:28]} Qxe3 {[%emt 0:00:43]} 49. Kh4 {[%emt 0:00:22]} Qxe2 {[%emt 0:01:08]} 0-1

[Event "4NCL 2019-20"]
[Site "Daventry"]
[Date "2020.01.11"]
[Round "3"]
[White "Carleton, John J"]
[Black "Palliser, Richard J D"]
[Result "0-1"]
[ECO "E93"]
[WhiteElo "2238"]
[BlackElo "2399"]
[Annotator "RC"]
[PlyCount "80"]
[EventDate "2020.01.11"]
[EventCountry "ENG"]
[SourceTitle "playchess.com"]
[Source "ChessBase"]
[SourceQuality "1"]
[TimeControl "40/6000:3000+30"]

1. d4 {[%emt 0:48:48]} Nf6 {[%emt 0:00:12]} 2. c4 {[%emt 0:00:19]} g6 {[%emt 0:00:05]} 3. Nc3 {[%emt 0:00:08]} Bg7 {[%emt 0:00:05]} 4. e4 {[%emt 0:00:19]} d6 {[%emt 0:00:06]} 5. Nf3 {[%emt 0:00:41]} O-O {[%emt 0:00:07]} 6. Be2 {[%emt 0:00:04]} e5 {[%emt 0:00:29]} 7. d5 {[%emt 0:00:34]} a5 {[%emt 0:01:46]} 8. Bg5 {[%emt 0:00:50]} h6 {[%emt 0:01:47]} 9. Bh4 {[%emt 0:00:27]} Na6 {[%emt 0:00:15]} 10. O-O {[%emt 0:02:53]} Nc5 {[%emt 0:04:47]} 11. Nd2 {[%emt 0:00:27]} Qd7 {[%emt 0:00:23]} 12. Qc2 {[%emt 0:08:20]} Nh5 {[%emt 0:11:41]} 13. Bxh5 {[%emt 0:05:00]} gxh5 {[%emt 0:00:10]} 14. f3 {[%emt 0:00:56]} f5 {[%emt 0:00:35]} 15. exf5 {[%emt 0:05:28]} Qxf5 {[%emt 0:00:42]} 16. Nde4 {[%emt 0:01:07]} Qg6 {[%emt 0:05:06]} 17. Qe2 {[%emt 0:00:41]} Nxe4 {[%emt 0:04:29]} 18. Nxe4 {[%emt 0:00:44]} Bf5 {[%emt 0:00:05]} 19. Rad1 {[%emt 0:05:45]} Bxe4 {[%emt 0:08:43]} 20. fxe4 {[%emt 0:02:43]} Rf4 {[%emt 0:02:10]} 21. Rxf4 {[%emt 0:09:11]} exf4 {[%emt 0:00:09]} 22. Rf1 {[%emt 0:16:21]} Be5 {[%emt 0:07:57]} 23. Be1 {[%emt 0:08:32]} Qg4 {[%emt 0:21:16]} 24. Qf3 {[%emt 0:03:05]} Qxf3 {[%emt 0:09:51]} 25. Rxf3 {[%emt 0:03:26]} Bxb2 {[%emt 0:00:07]} 26. Rb3 {[%emt 0:01:39]} Bd4+ {[%emt 0:24:00]} 27. Bf2 {[%emt 0:10:23]} Bf6 {[%emt 0:01:59]} 28. Rxb7 {[%emt 0:02:20]} Re8 29. Rxc7 {[%emt 0:01:27]} Rxe4 {[%emt 0:00:06]} 30. Kf1 {[%emt 0:08:57]} a4 {[%emt 0:02:02]} 31. c5 {[%emt 0:03:23]} dxc5 {[%emt 0:00:05]} 32. d6 {[%emt 0:01:26]} Rb4 {[%emt 0:04:06]} 33. d7 {[%emt 0:01:55]} Rb1+ {[%emt 0:00:02]} 34. Ke2 {[%emt 0:00:37]} Rb2+ {[%emt 0:00:03]} 35. Kf3 {[%emt 0:00:11]} Rxa2 {[%emt 0:01:54]} 36. Bxc5 {[%emt 0:00:34]} Rd2 {[%emt 0:00:29]} 37. Bb6 {[%emt 0:01:34]} a3 {[%emt 0:00:24]} 38. Rc8+ {[%emt 0:00:36]} Kf7 {[%emt 0:00:13]} 39. d8=Q {[%emt 0:00:16]} Bxd8 {[%emt 0:00:14]} 40. Rxd8 {[%emt 0:00:08]} Rxd8 {[%emt 0:00:03]} 0-1

[Event "4NCL 2019-20"]
[Site "Daventry"]
[Date "2020.01.11"]
[Round "3"]
[White "Holland, James P"]
[Black "French, Max"]
[Result "0-1"]
[ECO "B13"]
[WhiteElo "2228"]
[BlackElo "2168"]
[Annotator "ChessBase"]
[PlyCount "82"]
[EventDate "2020.01.11"]
[EventCountry "ENG"]
[SourceTitle "playchess.com"]
[Source "ChessBase"]
[SourceQuality "1"]
[TimeControl "40/6000:3000+30"]

1. e4 {[%emt 0:00:00]} c6 {[%emt 0:00:00]} 2. d4 {[%emt 0:00:00]} d5 {[%emt 0:00:00]} 3. exd5 {[%emt 0:00:00]} cxd5 {[%emt 0:00:00]} 4. Bd3 {[%emt 0:00:00]} Nc6 {[%emt 0:00:00]} 5. c3 {[%emt 0:00:00]} Qc7 {[%emt 0:00:00]} 6. h3 {[%emt 0:00:00]} Nf6 {[%emt 0:00:00]} 7. Nf3 {[%emt 0:00:00]} g6 {[%emt 0:00:32]} 8. Na3 {[%emt 0:02:42]} a6 {[%emt 0:01:32]} 9. Nc2 {[%emt 0:00:20]} Bg7 {[%emt 0:00:00]} 10. Qe2 {[%emt 0:13:58]} O-O {[%emt 0:01:21]} 11. O-O {[%emt 0:09:09]} Bf5 {[%emt 0:07:21]} 12. Bxf5 {[%emt 0:06:17]} gxf5 {[%emt 0:00:00]} 13. Nfe1 {[%emt 0:03:06]} e6 {[%emt 0:04:07]} 14. Nd3 {[%emt 0:02:31]} Ne4 {[%emt 0:01:03]} 15. Bf4 {[%emt 0:00:33]} Qe7 {[%emt 0:00:44]} 16. Rae1 {[%emt 0:08:44]} Kh8 {[%emt 0:03:10]} 17. Ne3 {[%emt 0:00:00]} Bf6 {[%emt 0:12:49]} 18. Qh5 {[%emt 0:03:25]} Qd8 {[%emt 0:14:05]} 19. f3 {[%emt 0:07:24]} Nd2 {[%emt 0:04:16]} 20. Ng4 {[%emt 0:09:11]} Nxf1 {[%emt 0:06:49]} 21. Nxf6 {[%emt 0:00:00]} Qxf6 {[%emt 0:00:00]} 22. Ne5 {[%emt 0:00:00]} Ng3 {[%emt 0:07:26]} 23. Bxg3 {[%emt 0:00:00]} Qg7 {[%emt 0:00:05]} 24. Bh4 {[%emt 0:00:48]} Nxe5 {[%emt 0:03:47]} 25. dxe5 {[%emt 0:00:00]} Qg6 {[%emt 0:00:49]} 26. Bf6+ {[%emt 0:00:00]} Kg8 {[%emt 0:00:00]} 27. Qh4 {[%emt 0:00:00]} h6 {[%emt 0:00:18]} 28. g4 {[%emt 0:03:43]} Kh7 {[%emt 0:06:18]} 29. Re2 {[%emt 0:08:42]} Rac8 {[%emt 0:01:14]} 30. Rg2 {[%emt 0:00:00]} Rg8 {[%emt 0:01:07]} 31. Qf2 {[%emt 0:00:00]} Rc6 {[%emt 0:02:57]} 32. Qa7 {[%emt 0:00:00]} fxg4 {[%emt 0:01:07]} 33. hxg4 {[%emt 0:00:11]} Rc7 {[%emt 0:02:30]} 34. Qb6 {[%emt 0:01:58]} Rd7 {[%emt 0:01:46]} 35. Qd4 {[%emt 0:01:31]} Rc8 {[%emt 0:01:49]} 36. Rd2 {[%emt 0:04:06]} Rdc7 {[%emt 0:02:27]} 37. Qb6 {[%emt 0:00:37]} Qb1+ {[%emt 0:00:01]} 38. Kf2 {[%emt 0:00:19]} Rxc3 {[%emt 0:04:27]} 39. Qxb7 {[%emt 0:00:00]} Kg8 {[%emt 0:00:35]} 40. Qxa6 {[%emt 0:02:32]} Rc2 {[%emt 0:00:05]} 41. Kg3 {[%emt 0:50:21]} Qe1+ {[%emt 0:50:31]} 0-1

[Event "4NCL 2019-20"]
[Site "Daventry"]
[Date "2020.01.11"]
[Round "3"]
[White "Jarvinen, Rauno"]
[Black "Cox, John J"]
[Result "0-1"]
[ECO "A36"]
[WhiteElo "2197"]
[BlackElo "2308"]
[Annotator "ChessBase"]
[PlyCount "120"]
[EventDate "2020.01.11"]
[EventCountry "ENG"]
[SourceTitle "playchess.com"]
[Source "ChessBase"]
[SourceQuality "1"]
[TimeControl "40/6000:3000+30"]

1. c4 {[%emt 0:00:00]} g6 {[%emt 0:03:07]} 2. g3 {[%emt 0:00:00]} Bg7 {[%emt 0:00:00]} 3. Bg2 {[%emt 0:00:00]} c5 {[%emt 0:00:00]} 4. Nc3 {[%emt 0:00:00]} Nc6 {[%emt 0:00:00]} 5. a3 {[%emt 0:00:00]} b6 {[%emt 0:00:21]} 6. d3 {[%emt 0:11:32]} Bb7 {[%emt 0:02:07]} 7. Nf3 {[%emt 0:00:14]} e6 {[%emt 0:01:43]} 8. Bf4 {[%emt 0:23:59]} d6 {[%emt 0:11:44]} 9. O-O {[%emt 0:00:00]} Nge7 {[%emt 0:00:36]} 10. Rb1 {[%emt 0:00:00]} Qd7 {[%emt 0:00:00]} 11. Qc1 {[%emt 0:00:00]} Nd4 {[%emt 0:03:12]} 12. e4 {[%emt 0:09:51]} O-O {[%emt 0:01:48]} 13. Nxd4 {[%emt 0:15:10]} cxd4 {[%emt 0:01:03]} 14. Ne2 {[%emt 0:00:00]} Rac8 {[%emt 0:13:41]} 15. b3 {[%emt 0:03:03]} d5 {[%emt 0:05:55]} 16. f3 {[%emt 0:01:41]} b5 {[%emt 0:05:19]} 17. c5 {[%emt 0:04:01]} dxe4 {[%emt 0:00:00]} 18. fxe4 {[%emt 0:01:06]} e5 {[%emt 0:09:14]} 19. Bg5 {[%emt 0:07:14]} f6 {[%emt 0:01:11]} 20. Bd2 {[%emt 0:01:07]} f5 {[%emt 0:00:00]} 21. b4 {[%emt 0:03:24]} Bc6 {[%emt 0:15:19]} 22. Qc2 {[%emt 0:04:06]} Kh8 {[%emt 0:01:46]} 23. Nc1 {[%emt 0:01:39]} Ng8 {[%emt 0:02:14]} 24. Nb3 {[%emt 0:00:18]} Nf6 {[%emt 0:01:20]} 25. Rbe1 {[%emt 0:01:59]} fxe4 {[%emt 0:04:03]} 26. dxe4 {[%emt 0:00:00]} h5 {[%emt 0:00:51]} 27. h3 {[%emt 0:01:01]} Kh7 {[%emt 0:00:00]} 28. Bg5 {[%emt 0:00:17]} Qe6 {[%emt 0:00:53]} 29. Nd2 {[%emt 0:00:00]} Bh6 {[%emt 0:01:16]} 30. Bxh6 {[%emt 0:00:00]} Kxh6 {[%emt 0:00:00]} 31. Nf3 {[%emt 0:00:00]} Kg7 {[%emt 0:01:59]} 32. Ng5 {[%emt 0:00:00]} Qg8 {[%emt 0:01:04]} 33. Rf2 {[%emt 0:00:43]} Nh7 {[%emt 0:01:27]} 34. Nf3 {[%emt 0:00:00]} Rce8 {[%emt 0:00:11]} 35. Qd2 {[%emt 0:02:05]} Qb3 {[%emt 0:02:25]} 36. Qb2 {[%emt 0:01:25]} Qe6 {[%emt 0:00:00]} 37. Qd2 {[%emt 0:01:09]} Qb3 {[%emt 0:00:00]} 38. Qb2 {[%emt 0:00:00]} Qe6 {[%emt 0:00:00]} 39. Qd2 {[%emt 0:00:00]} Qe7 {[%emt 0:00:00]} 40. Kh2 {[%emt 0:01:57]} g5 {[%emt 0:00:00]} 41. Qe2 {[%emt 0:03:11]} h4 {[%emt 0:06:49]} 42. Ref1 {[%emt 0:09:56]} hxg3+ {[%emt 0:09:11]} 43. Kxg3 {[%emt 0:00:06]} Qe6 {[%emt 0:07:03]} 44. Ne1 {[%emt 0:02:39]} Rf4 {[%emt 0:08:31]} 45. Nd3 {[%emt 0:04:20]} Qg6 {[%emt 0:00:23]} 46. Nxf4 {[%emt 0:04:14]} gxf4+ {[%emt 0:00:11]} 47. Kh2 {[%emt 0:00:34]} Qg3+ {[%emt 0:01:07]} 48. Kh1 {[%emt 0:04:29]} Ng5 {[%emt 0:00:14]} 49. Rf3 {[%emt 0:05:46]} Nxf3 {[%emt 0:01:34]} 50. Rxf3 {[%emt 0:01:06]} Qg6 {[%emt 0:00:26]} 51. Rd3 {[%emt 0:04:38]} Kf6 {[%emt 0:01:05]} 52. Rd1 {[%emt 0:01:53]} Rg8 {[%emt 0:00:42]} 53. Rf1 {[%emt 0:01:39]} Qg3 {[%emt 0:00:56]} 54. Rf2 {[%emt 0:05:22]} d3 {[%emt 0:04:23]} 55. Qh5 {[%emt 0:02:59]} Bxe4 {[%emt 0:02:04]} 56. Qh6+ {[%emt 0:00:35]} Qg6 {[%emt 0:00:44]} 57. Rxf4+ {[%emt 0:00:48]} exf4 {[%emt 0:00:06]} 58. Qxf4+ {[%emt 0:00:03]} Bf5 {[%emt 0:00:19]} 59. Qd4+ {[%emt 0:01:40]} Ke7 {[%emt 0:00:20]} 60. Qe5+ {[%emt 0:00:26]} Qe6 {[%emt 0:00:14]} 0-1

[Event "4NCL 2019-20"]
[Site "Daventry"]
[Date "2020.01.11"]
[Round "3"]
[White "Clarke, Stuart W"]
[Black "Houska, Jovanka"]
[Result "0-1"]
[ECO "B14"]
[WhiteElo "2195"]
[BlackElo "2401"]
[Annotator "RC"]
[PlyCount "62"]
[EventDate "2020.01.11"]
[EventCountry "ENG"]
[SourceTitle "playchess.com"]
[Source "ChessBase"]
[SourceQuality "1"]
[TimeControl "40/6000:3000+30"]

1. e4 {[%emt 0:00:00]} c6 {[%emt 0:00:00]} 2. d4 {[%emt 0:00:00]} d5 {[%emt 0:00:00]} 3. exd5 {[%emt 0:00:00]} cxd5 {[%emt 0:00:00]} 4. c4 {[%emt 0:00:00]} Nf6 {[%emt 0:00:00]} 5. Nc3 {[%emt 0:00:00]} g6 {[%emt 0:00:00]} 6. Qb3 {[%emt 0:00:00]} Bg7 {[%emt 0:00:00]} 7. cxd5 {[%emt 0:00:00]} O-O {[%emt 0:00:00]} 8. Be2 {[%emt 0:00:50]} Na6 {[%emt 0:00:00]} 9. Bf4 {[%emt 0:02:55]} Qa5 {[%emt 0:00:00]} 10. a3 {[%emt 0:10:51]} Rd8 {[%emt 0:17:14]} 11. Bf3 {[%emt 0:05:22]} Nc7 {[%emt 0:05:58]} 12. Bxc7 {[%emt 0:06:30]} Qxc7 {[%emt 0:00:18]} 13. h3 {[%emt 0:00:00]} e6 {[%emt 0:12:29]} 14. Nge2 {[%emt 0:00:18]} exd5 {[%emt 0:00:22]} 15. O-O {[%emt 0:07:20]} Be6 {[%emt 0:02:28]} 16. Rad1 {[%emt 0:05:02]} Rac8 {[%emt 0:01:25]} 17. Rfe1 {[%emt 0:01:32]} h5 {[%emt 0:05:09]} 18. h4 {[%emt 0:09:30]} Bh6 {[%emt 0:01:36]} 19. g3 {[%emt 0:06:06]} Rd6 {[%emt 0:11:04]} 20. Nc1 {[%emt 0:05:31]} Rb6 {[%emt 0:07:02]} 21. Qa2 {[%emt 0:02:03]} Ne4 {[%emt 0:11:47]} 22. Bxe4 {[%emt 0:08:33]} dxe4 {[%emt 0:00:00]} 23. d5 {[%emt 0:00:45]} Bg4 {[%emt 0:00:00]} 24. N1e2 {[%emt 0:05:38]} Bf3 {[%emt 0:00:39]} 25. Rd4 {[%emt 0:01:52]} e3 {[%emt 0:06:38]} 26. d6 {[%emt 0:01:38]} Qd7 {[%emt 0:01:42]} 27. Nf4 {[%emt 0:03:36]} Rxd6 {[%emt 0:00:44]} 28. Ncd5 {[%emt 0:01:44]} Bxd5 {[%emt 0:05:39]} 29. Nxd5 {[%emt 0:01:18]} exf2+ {[%emt 0:00:00]} 30. Kxf2 {[%emt 0:00:03]} Rc2+ {[%emt 0:00:00]} 31. Re2 {[%emt 0:01:34]} Qf5+ {[%emt 0:00:00]} 0-1